bitfinex/quotes_SOLUSD_20250406
["timestamp","ask_amount","ask_price","bid_price","bid_amount"]
[1743973135925,0.063,106.67,106.64,0.28432314]
[1743973136125,0.063,106.67,106.65,68.75327847]
[1743973136958,0.063,106.67,106.64,0.28432314]
[1743973137128,0.063,106.67,106.65,68.75327847]
[1743973137529,0.063,106.67,106.62,0.28432314]
[1743973137828,81.263,106.67,106.63,68.75327847]
[1743973138031,81.263,106.67,106.62,0.28432314]
[1743973138554,81.263,106.67,106.63,68.75327847]
[1743973138754,81.263,106.67,106.64,68.75327847]
[1743973139236,81.263,106.67,106.65,68.75327847]
[1743973139625,81.263,106.67,106.66,68.75327847]
[1743973139941,0.063,106.67,106.66,69.03760161]
[1743973140145,0.063,106.67,106.65,68.75327847]
[1743973140749,0.063,106.67,106.64,0.28432314]
[1743973140950,68.81627847,106.67,106.62,68.75327847]
[1743973141253,81.2,106.66,106.62,68.75327847]
[1743973141615,149.95327847,106.66,106.61,68.75327847]
[1743973141818,149.95327847,106.66,106.6,0.31432314]
[1743973142045,149.95327847,106.66,106.61,68.75327847]
[1743973142424,149.95327847,106.66,106.6,9.4106]
[1743973142632,149.95327847,106.66,106.6,0.03]
[1743973142836,149.95327847,106.66,106.61,0.28432314]
[1743973143057,81.2,106.65,106.6,0.03]
[1743973143437,68.75327847,106.64,106.6,0.03]
[1743973143636,94.94,106.63,106.6,0.03]
[1743973143840,163.69327847,106.63,106.6,0.03]
[1743973144839,81.2,106.62,106.6,0.03]
[1743973145651,81.2,106.62,106.6,68.78327847]
[1743973145835,81.2,106.62,106.61,68.75327847]
[1743973146035,81.2,106.62,106.6,68.78327847]
[1743973147230,81.2,106.62,106.6,0.03]
[1743973149036,149.95327847,106.62,106.6,0.03]
[1743973149438,149.95327847,106.61,106.6,0.03]
[1743973149634,68.75327847,106.61,106.6,0.03]
[1743973149833,26.0,106.61,106.6,0.03]
[1743973150049,68.75327847,106.62,106.6,0.03]
[1743973151144,82.49327847,106.63,106.6,0.03]
[1743973151349,13.72,106.62,106.6,0.03]
[1743973153041,68.75327847,106.61,106.6,0.03]
[1743973153257,13.72,106.62,106.6,0.03]
[1743973153456,59.53296422,106.62,106.6,0.03]
[1743973153976,13.72,106.62,106.6,0.03]
[1743973154154,59.53296422,106.62,106.6,0.03]
[1743973154551,13.72,106.62,106.6,0.03]
[1743973155248,59.53296422,106.62,106.6,0.03]
[1743973156485,45.81296422,106.61,106.6,0.03]
[1743973157477,13.72,106.62,106.6,0.03]
[1743973157704,75.81296422,106.61,106.6,0.03]
[1743973163005,103.98467465,106.61,106.6,0.03]
[1743973163217,104.48467465,106.61,106.6,0.03]
[1743973163378,38.79181043,106.6,106.56,0.03]
[1743973163582,45.81296422,106.57,106.56,0.03]
[1743973164477,75.81296422,106.57,106.56,0.03]
[1743973165978,30.0,106.57,106.56,0.03]
[1743973167379,75.81296422,106.57,106.56,0.03]
[1743973168205,13.7,106.58,106.56,0.03]
[1743973168402,59.51296422,106.58,106.56,0.03]
[1743973169007,13.7,106.58,106.56,0.03]
[1743973169177,59.51296422,106.58,106.56,0.03]
[1743973169781,45.81296422,106.57,106.56,0.03]
[1743973173103,377.64477465,106.62,106.56,0.03]
[1743973173305,13.7,106.61,106.56,0.03]
[1743973173484,45.81296422,106.59,106.56,0.03]
[1743973173684,45.81296422,106.6,106.56,0.03]
[1743973174904,45.81296422,106.59,106.56,0.03]
[1743973175493,45.81296422,106.58,106.56,0.03]
[1743973175999,45.81296422,106.57,106.56,0.03]
[1743973177607,45.81296422,106.58,106.56,0.03]
[1743973177987,81.2,106.59,106.56,45.84296422]
[1743973178490,81.2,106.59,106.56,9.4141]
[1743973178688,81.2,106.59,106.56,55.22706422]
[1743973178890,81.2,106.59,106.57,46.09728736]
[1743973179297,81.2,106.59,106.56,45.84296422]
[1743973179503,81.2,106.59,106.56,55.22726422]
[1743973179688,81.2,106.59,106.56,0.31432314]
[1743973179889,81.2,106.59,106.56,55.51148736]
[1743973180190,81.2,106.59,106.57,45.81296422]
[1743973180398,81.2,106.59,106.56,45.84296422]
[1743973180902,81.2,106.59,106.56,0.03]
[1743973181105,127.01296422,106.59,106.56,0.03]
[1743973181987,81.2,106.59,106.56,0.03]
[1743973182720,127.01296422,106.59,106.56,0.03]
[1743973183829,81.2,106.59,106.56,0.03]
[1743973185012,45.81296422,106.58,106.56,0.03]
[1743973185388,81.2,106.57,106.56,0.03]
[1743973187107,94.88,106.57,106.56,0.03]
[1743973192896,140.69296422,106.57,106.56,0.03]
[1743973193397,94.88,106.57,106.56,0.03]
[1743973193999,81.2,106.6,106.56,45.84296422]
[1743973194820,81.2,106.6,106.57,45.81296422]
[1743973194991,81.2,106.6,106.56,45.84296422]
[1743973195425,81.2,106.6,106.56,55.22696422]
[1743973197019,81.2,106.6,106.58,45.81296422]
[1743973197222,81.2,106.6,106.56,9.414]
[1743973197413,81.2,106.6,106.56,55.22696422]
[1743973198330,127.01296422,106.6,106.56,0.03]
[1743973198541,45.81296422,106.58,106.56,0.03]
[1743973199045,81.2,106.59,106.56,0.03]
[1743973199046,127.01296422,106.59,106.56,0.03]
[1743973199323,81.2,106.59,106.56,0.03]
[1743973199623,81.2,106.59,106.56,45.84296422]
[1743973200021,81.2,106.59,106.57,45.81296422]
[1743973200225,81.2,106.63,106.57,45.81296422]
[1743973200420,81.2,106.63,106.6,45.81296422]
[1743973200616,81.2,106.63,106.58,2.00292314]
[1743973200814,45.81296422,106.62,106.56,0.03]
[1743973201007,127.01296422,106.61,106.56,0.03]
[1743973201208,81.2,106.61,106.56,45.84296422]
[1743973201532,127.01296422,106.61,106.56,45.84296422]
[1743973201833,127.01296422,106.61,106.56,55.22716422]
[1743973202033,81.2,106.61,106.56,55.22716422]
[1743973202229,81.2,106.61,106.58,45.81296422]
[1743973202728,81.2,106.61,106.56,0.03]
[1743973202729,45.81296422,106.59,106.56,0.03]
[1743973202931,45.81296422,106.57,106.56,0.03]
[1743973203805,130.91773887,106.57,106.55,0.03]
[1743973204014,20.0,106.53,106.51,0.03]
[1743973204212,59.45296422,106.52,106.51,0.03]
[1743973205030,38.79181043,106.5,106.49,0.03]
[1743973205223,130.41773887,106.5,106.49,0.03]
[1743973206013,45.81296422,106.5,106.49,0.03]
[1743973206233,59.45296422,106.52,106.49,0.03]
[1743973206716,13.64,106.52,106.5,45.81296422]
[1743973207038,13.64,106.52,106.49,0.03]
[1743973207210,13.64,106.52,106.5,45.81296422]
[1743973207533,0.14216157,106.58,106.52,9.3879]
[1743973207534,13.64,106.57,106.52,9.3879]
[1743973207833,94.84,106.57,106.55,45.81296422]
[1743973208033,59.45296422,106.61,106.56,45.81296422]
[1743973208338,127.01296422,106.6,106.55,45.81296422]
[1743973208664,91.62592844,106.56,106.48,7.1637]
[1743973208950,45.81296422,106.5,106.46,0.03]
[1743973209108,59.45296422,106.5,106.46,0.03]
[1743973209315,13.64,106.5,106.46,0.03]
[1743973209515,59.45296422,106.5,106.46,0.03]
[1743973210628,13.64,106.5,106.46,0.03]
[1743973210837,59.45296422,106.5,106.46,0.03]
[1743973211014,105.26592844,106.5,106.46,0.03]
[1743973211213,124.05773887,106.5,106.46,0.03]
[1743973211929,20.14216157,106.47,106.46,0.03]
[1743973212258,20.14216157,106.47,106.44,0.03]
[1743973212259,65.81296422,106.47,106.44,0.03]
[1743973212548,45.81296422,106.45,106.44,0.03]
[1743973212740,45.81296422,106.46,106.44,0.03]
[1743973212922,20.0,106.47,106.44,0.03]
[1743973213108,45.81296422,106.45,106.44,0.03]
[1743973213310,65.95512579,106.45,106.44,0.03]
[1743973213508,84.60477465,106.45,106.44,0.03]
[1743973213821,84.88909779,106.45,106.44,0.03]
[1743973214020,130.70206201,106.45,106.44,0.03]
[1743973214336,140.09606201,106.45,106.44,0.03]
[1743973214541,84.88909779,106.45,106.44,0.03]
[1743973214725,84.60477465,106.45,106.44,0.03]
[1743973215324,65.81296422,106.45,106.44,0.03]
[1743973216531,59.45296422,106.45,106.44,0.03]
[1743973216920,45.81296422,106.45,106.44,0.03]
[1743973217218,59.43296422,106.45,106.44,0.03]
[1743973218420,133.71606201,106.45,106.44,0.03]
[1743973218622,20.0,106.42,106.36,1.764]
[1743973218831,45.81296422,106.41,106.36,11.1659]
[1743973219024,45.81296422,106.41,106.36,56.97886422]
[1743973219223,20.14216157,106.44,106.36,9.4019]
[1743973219428,45.81296422,106.41,106.36,55.21486422]
[1743973219630,45.81296422,106.41,106.36,9.4019]
[1743973220142,45.81296422,106.39,106.34,6.9952]
[1743973220339,45.81296422,106.39,106.34,62.21156422]
[1743973220340,13.62,106.39,106.34,62.21156422]
[1743973220526,13.62,106.39,106.36,45.81296422]
[1743973220924,13.62,106.39,106.38,45.81296422]
[1743973221128,13.62,106.47,106.39,0.28432314]
[1743973221447,81.2,106.44,106.39,18.933972]
[1743973221759,0.14216157,106.49,106.44,9.67922314]
[1743973221760,81.2,106.49,106.44,9.67922314]
[1743973221961,81.2,106.51,106.47,46.09728736]
[1743973222173,13.62,106.53,106.49,45.81296422]
[1743973222553,13.62,106.53,106.45,1.811]
[1743973222865,13.62,106.53,106.46,45.81296422]
[1743973222866,127.01296422,106.52,106.46,45.81296422]
[1743973223046,127.01296422,106.52,106.45,1.811]
[1743973223342,81.2,106.52,106.45,2.09532314]
[1743973223544,81.2,106.52,106.48,45.81296422]
[1743973223752,81.2,106.55,106.51,55.20166422]
[1743973223920,81.2,106.57,106.54,45.81296422]
[1743973224129,50.81875768,106.58,106.56,45.81296422]
[1743973224320,13.62,106.63,106.57,45.81296422]
[1743973224541,13.62,106.63,106.56,18.64964886]
[1743973224851,45.81296422,106.59,106.52,18.933972]
[1743973225050,45.81296422,106.57,106.51,45.81296422]
[1743973225254,81.2,106.56,106.51,68.79960859]
[1743973225457,149.99960859,106.55,106.5,16.67626157]
[1743973225740,149.99960859,106.55,106.51,0.28432314]
[1743973225741,81.2,106.55,106.51,0.28432314]
[1743973225948,81.2,106.55,106.52,68.79960859]
[1743973226651,81.2,106.55,106.5,68.79960859]
[1743973226652,149.99960859,106.55,106.5,68.79960859]
[1743973226854,68.79960859,106.53,106.48,1.811]
[1743973227044,68.79960859,106.53,106.48,70.61060859]
[1743973227221,81.2,106.54,106.52,68.79960859]
[1743973227427,81.2,106.56,106.53,68.79960859]
[1743973227749,81.2,106.56,106.52,68.79960859]
[1743973228229,81.2,106.56,106.53,69.08393173]
[1743973228429,81.2,106.6,106.55,68.79960859]
[1743973228646,81.2,106.59,106.56,68.79960859]
[1743973228877,81.2,106.59,106.57,68.79960859]
[1743973229143,81.2,106.63,106.58,68.79960859]
[1743973229345,0.063,106.65,106.61,68.79960859]
[1743973229762,0.063,106.65,106.63,78.17760859]
[1743973230162,0.063,106.65,106.64,87.73358059]
[1743973230335,30.063,106.65,106.64,87.87574216]
[1743973230538,30.063,106.65,106.64,87.73358059]
[1743973230729,30.063,106.65,106.64,87.87574216]
[1743973230730,28.195,106.65,106.64,87.87574216]
[1743973230952,0.063,106.7,106.68,26.0]
[1743973231160,0.063,106.7,106.69,0.28432314]
[1743973231467,0.063,106.7,106.69,87.59141902]
[1743973231670,0.063,106.7,106.69,87.44925745]
[1743973231951,0.063,106.7,106.69,96.96431902]
[1743973232149,0.063,106.71,106.7,18.79181043]
[1743973232333,0.063,106.76,106.72,18.79181043]
[1743973232533,0.063,106.8,106.76,18.79181043]
[1743973232738,30.0,106.77,106.76,68.79960859]
[1743973232948,30.0,106.77,106.73,68.79960859]
[1743973233162,30.0,106.77,106.74,68.79960859]
[1743973233454,30.0,106.77,106.72,68.79960859]
[1743973233645,30.0,106.77,106.73,68.79960859]
[1743973233842,30.0,106.77,106.74,68.79960859]
[1743973234259,30.0,106.77,106.75,68.79960859]
[1743973234751,30.0,106.77,106.76,68.79960859]
[1743973234954,179.99960859,106.77,106.72,68.79960859]
[1743973235154,149.99960859,106.76,106.7,68.79960859]
[1743973235355,30.0,106.74,106.73,69.08393173]
[1743973235665,30.0,106.74,106.73,68.94177016]
[1743973235871,30.0,106.74,106.73,87.73358059]
[1743973236401,30.0,106.74,106.73,87.87574216]
[1743973236693,30.0,106.74,106.73,97.24514216]
[1743973236847,30.0,106.75,106.74,0.14216157]
[1743973237048,30.0,106.75,106.74,0.28432314]
[1743973237276,30.0,106.75,106.73,68.79960859]
[1743973237481,30.0,106.75,106.72,68.79960859]
[1743973237685,30.0,106.75,106.7,18.64964886]
[1743973237872,98.79960859,106.75,106.69,68.79960859]
[1743973238061,30.0,106.75,106.73,68.79960859]
[1743973238385,30.0,106.75,106.74,69.08393173]
[1743973238586,30.0,106.75,106.74,87.73358059]
[1743973239682,30.0,106.75,106.74,18.933972]
[1743973239871,30.0,106.75,106.74,87.87574216]
[1743973240059,30.0,106.75,106.74,69.08393173]
[1743973240305,30.0,106.75,106.74,87.73358059]
[1743973240680,30.0,106.75,106.74,97.10208059]
[1743973241200,30.0,106.75,106.71,68.79960859]
[1743973241514,30.0,106.75,106.72,68.79960859]
[1743973241686,30.0,106.75,106.73,68.79960859]
[1743973242108,30.0,106.75,106.71,68.79960859]
[1743973242275,68.79960859,106.73,106.63,9.3782]
[1743973242575,81.2,106.72,106.67,68.79960859]
[1743973242775,81.2,106.72,106.68,68.79960859]
[1743973243188,81.2,106.72,106.67,68.79960859]
[1743973243391,81.2,106.72,106.69,68.79960859]
[1743973243595,30.0,106.75,106.71,68.79960859]
[1743973243789,30.0,106.75,106.73,68.79960859]
[1743973244394,30.0,106.75,106.71,0.28432314]
[1743973244584,98.79960859,106.75,106.69,18.64964886]
[1743973244782,30.0,106.75,106.71,68.79960859]
[1743973244983,30.0,106.75,106.73,68.79960859]
[1743973245390,30.0,106.75,106.71,68.79960859]
[1743973245622,30.0,106.75,106.72,68.79960859]
[1743973245902,30.0,106.75,106.73,68.79960859]
[1743973246103,30.0,106.75,106.74,69.08393173]
[1743973246405,30.0,106.75,106.72,68.79960859]
[1743973246909,30.0,106.75,106.73,0.28432314]
[1743973247112,30.0,106.75,106.74,69.08393173]
[1743973247804,30.0,106.75,106.74,156.67535075]
[1743973248001,30.0,106.75,106.67,46.34624103]
[1743973248002,81.2,106.74,106.65,7.4175]
[1743973248204,81.2,106.74,106.71,68.79960859]
[1743973248590,149.99960859,106.74,106.68,68.79960859]
[1743973248811,68.79960859,106.7,106.68,0.063]
[1743973248979,82.33960859,106.69,106.68,0.063]
[1743973249185,13.54,106.69,106.68,0.063]
[1743973249504,151.13921718,106.69,106.62,0.063]
[1743973249681,68.79960859,106.65,106.62,0.063]
[1743973249878,149.99960859,106.68,106.62,0.063]
[1743973250092,149.99960859,106.68,106.63,0.28432314]
[1743973250283,81.2,106.68,106.64,68.79960859]
[1743973250494,81.2,106.68,106.64,69.08393173]
[1743973250698,13.54,106.69,106.66,87.73358059]
[1743973251000,81.2,106.72,106.67,68.79960859]
[1743973251221,13.54,106.7,106.68,0.28432314]
[1743973251460,13.54,106.7,106.67,0.28432314]
[1743973251627,13.54,106.7,106.67,69.08393173]
[1743973251923,13.54,106.7,106.68,68.79960859]
[1743973252279,13.54,106.7,106.68,78.17320859]
[1743973252909,94.74,106.72,106.68,78.17320859]
[1743973253204,16.07030399,106.73,106.72,0.28432314]
[1743973253409,3.99e-06,106.73,106.72,87.87574216]
[1743973253590,0.063,106.78,106.76,0.42648471]
[1743973253787,0.063,106.78,106.76,0.28432314]
[1743973253986,0.063,106.78,106.76,69.08393173]
[1743973254184,0.063,106.78,106.77,97.24164216]
[1743973255347,0.0001,106.78,106.77,97.24164216]
[1743973255716,0.0001,106.78,106.77,97.74164216]
[1743973256342,0.0001,106.8,106.79,0.64216157]
[1743973256656,0.0001,106.8,106.79,157.17535075]
[1743973256954,0.063,106.86,106.85,19.07613357]
[1743973257156,0.063,106.86,106.85,87.87574216]
[1743973257748,0.063,106.86,106.84,68.79960859]
[1743973258124,0.063,106.86,106.82,68.79960859]
[1743973258444,0.063,106.86,106.82,78.16100859]
[1743973259539,68.86260859,106.86,106.81,26.28432314]
[1743973259857,0.063,106.86,106.82,87.59141902]
[1743973260071,68.86260859,106.86,106.81,18.79181043]
[1743973260361,68.79960859,106.82,106.77,28.01524886]
[1743973260534,68.79960859,106.81,106.77,18.64964886]
[1743973260860,68.79960859,106.78,106.72,68.79960859]
[1743973261040,94.72,106.81,106.7,9.372]
[1743973261041,68.79960859,106.79,106.73,68.94177016]
[1743973261252,68.79960859,106.79,106.74,68.79960859]
[1743973261548,149.99960859,106.8,106.72,18.79181043]
[1743973261851,13.52,106.81,106.78,68.79960859]
[1743973262060,13.52,106.81,106.79,69.08393173]
[1743973262357,13.52,106.81,106.78,44.64964886]
[1743973262545,13.52,106.81,106.78,54.01444886]
[1743973262870,0.063,106.86,106.81,19.07613357]
[1743973263027,68.86260859,106.86,106.78,58.7774]
[1743973263220,68.86260859,106.86,106.81,87.73358059]
[1743973263422,68.86260859,106.86,106.81,68.79960859]
[1743973263655,68.79960859,106.82,106.77,44.79181043]
[1743973263968,82.31960859,106.82,106.77,68.94177016]
[1743973264255,13.52,106.82,106.76,28.01634886]
[1743973264465,13.52,106.82,106.77,87.73358059]
[1743973264665,13.52,106.82,106.76,78.16630859]
[1743973264666,82.31960859,106.82,106.76,78.16630859]
[1743973264958,13.52,106.82,106.78,68.79960859]
[1743973266245,13.52,106.82,106.8,9.3632]
[1743973266568,13.52,106.82,106.79,9.3638]
[1743973266876,13.52,106.82,106.8,68.79960859]
[1743973267052,149.99960859,106.85,106.8,68.79960859]
[1743973267364,94.72,106.85,106.82,68.79960859]
[1743973267964,13.52,106.85,106.83,68.79960859]
[1743973268147,0.063,106.86,106.85,0.28432314]
[1743973268352,0.063,106.86,106.85,28.292872]
[1743973268577,0.063,106.86,106.81,26.0]
[1743973268734,68.86260859,106.86,106.81,94.79960859]
[1743973269043,68.79960859,106.82,106.76,0.14216157]
[1743973269356,13.52,106.83,106.78,0.28432314]
[1743973269571,13.52,106.83,106.79,68.79960859]
[1743973269748,13.52,106.83,106.81,18.79181043]
[1743973269939,13.52,106.83,106.78,18.79181043]
[1743973270259,13.52,106.83,106.79,9.50626157]
[1743973270468,13.52,106.83,106.79,78.30587016]
[1743973270852,68.79960859,106.82,106.75,28.15941043]
[1743973271055,68.79960859,106.8,106.75,9.3676]
[1743973271261,68.79960859,106.81,106.76,68.79960859]
[1743973271464,149.99960859,106.82,106.77,68.79960859]
[1743973271846,81.2,106.82,106.76,18.933972]
[1743973272144,68.79960859,106.78,106.7,9.372]
[1743973272349,82.29960859,106.77,106.72,18.64964886]
[1743973272553,82.29960859,106.77,106.71,68.79960859]
[1743973272865,1.8925,106.76,106.71,68.79960859]
[1743973273075,70.69210859,106.76,106.69,9.4358]
[1743973273371,68.79960859,106.72,106.69,0.063]
[1743973273665,68.79960859,106.74,106.69,68.86260859]
[1743973273864,68.79960859,106.74,106.69,78.23510859]
[1743973274249,68.79960859,106.74,106.69,68.86260859]
[1743973274448,68.79960859,106.74,106.69,0.063]
[1743973274663,149.99960859,106.75,106.73,0.063]
[1743973274849,81.2,106.75,106.73,0.063]
[1743973275252,1.8925,106.76,106.73,68.86260859]
[1743973275458,13.5,106.78,106.74,68.79960859]
[1743973275650,13.5,106.78,106.76,68.79960859]
[1743973275851,13.5,106.78,106.74,0.28432314]
[1743973276050,13.5,106.78,106.75,68.79960859]
[1743973276245,81.2,106.79,106.77,68.79960859]
[1743973276446,81.2,106.82,106.78,68.79960859]
[1743973276749,81.2,106.82,106.78,18.933972]
[1743973277067,81.2,106.82,106.76,0.14216157]
[1743973277068,68.79960859,106.8,106.73,0.063]
[1743973277258,68.79960859,106.79,106.73,0.063]
[1743973277457,68.79960859,106.76,106.73,0.063]
[1743973278168,68.79960859,106.74,106.73,0.063]
[1743973279077,81.2,106.75,106.73,0.063]
[1743973279276,68.79960859,106.74,106.73,0.063]
[1743973279454,13.5,106.74,106.73,0.063]
[1743973279777,82.29960859,106.74,106.73,0.063]
[1743973279980,13.5,106.74,106.73,0.063]
[1743973280548,15.3857,106.77,106.73,87.79658059]
[1743973280750,15.3857,106.77,106.73,69.14693173]
[1743973280952,84.18530859,106.77,106.73,0.063]
[1743973281163,149.99960859,106.76,106.73,0.063]
[1743973282054,81.2,106.76,106.73,68.86260859]
[1743973282250,81.2,106.76,106.74,68.79960859]
[1743973282489,81.2,106.79,106.75,68.79960859]
[1743973282776,13.5,106.82,106.79,18.64964886]
[1743973283074,0.063,106.86,106.82,26.0]
[1743973283379,68.79960859,106.85,106.8,68.79960859]
[1743973283584,13.5,106.84,106.79,68.79960859]
[1743973283788,13.5,106.84,106.8,68.79960859]
[1743973284092,13.5,106.84,106.79,68.79960859]
[1743973284269,149.99960859,106.83,106.77,94.79960859]
[1743973284570,81.2,106.83,106.79,68.79960859]
[1743973284773,81.2,106.83,106.8,68.79960859]
[1743973284978,6.5,106.84,106.8,68.79960859]
[1743973284979,81.263,106.86,106.82,68.79960859]
[1743973285273,81.263,106.86,106.81,69.08393173]
[1743973285473,81.263,106.86,106.81,68.79960859]
[1743973285777,150.06260859,106.86,106.81,68.79960859]
[1743973286078,81.263,106.86,106.82,87.73358059]
[1743973286253,81.263,106.86,106.83,68.79960859]
[1743973286453,81.263,106.86,106.81,68.79960859]
[1743973286454,150.06260859,106.86,106.81,68.79960859]
[1743973287077,150.06260859,106.86,106.8,68.79960859]
[1743973287378,68.79960859,106.85,106.79,0.28432314]
[1743973287572,81.263,106.86,106.82,69.08393173]
[1743973287760,81.263,106.86,106.83,68.79960859]
[1743973287961,81.263,106.86,106.82,69.08393173]
[1743973288360,81.263,106.86,106.83,68.79960859]
[1743973288577,81.263,106.86,106.82,69.08393173]
[1743973289273,68.79960859,106.85,106.78,19.07613357]
[1743973289482,81.263,106.86,106.75,0.14216157]
[1743973289689,149.99960859,106.85,106.8,68.79960859]
[1743973289860,149.99960859,106.85,106.79,69.08393173]
[1743973290259,81.2,106.85,106.79,18.933972]
[1743973290457,68.79960859,106.84,106.79,69.08393173]
[1743973290853,68.79960859,106.84,106.78,68.79960859]
[1743973291080,68.79960859,106.84,106.79,68.79960859]
[1743973291392,149.99960859,106.85,106.8,68.79960859]
[1743973291563,81.2,106.85,106.81,68.79960859]
[1743973291765,149.99960859,106.85,106.8,68.79960859]
[1743973291969,149.99960859,106.85,106.79,87.73358059]
[1743973292289,68.79960859,106.83,106.78,87.59141902]
[1743973292477,68.79960859,106.84,106.78,18.79181043]
[1743973292658,68.79960859,106.83,106.78,87.59141902]
[1743973292865,68.79960859,106.8,106.75,68.79960859]
[1743973293068,68.79960859,106.78,106.73,68.86260859]
[1743973293300,81.2,106.79,106.75,68.79960859]
[1743973294162,94.68,106.82,106.77,68.79960859]
[1743973294498,68.79960859,106.81,106.76,87.44925745]
[1743973294665,81.2,106.85,106.79,68.79960859]
[1743973294869,81.2,106.85,106.74,68.79960859]
[1743973294870,81.2,106.85,106.81,68.79960859]
[1743973295193,81.2,106.85,106.82,68.79960859]
[1743973295393,81.2,106.85,106.81,69.08393173]
[1743973295793,0.063,106.86,106.83,68.79960859]
[1743973295963,0.063,106.86,106.82,0.14216157]
[1743973296296,0.063,106.86,106.85,68.79960859]
[1743973296463,0.063,106.86,106.85,87.73358059]
[1743973296669,0.063,106.86,106.85,87.87574216]
[1743973297166,0.063,106.86,106.85,19.07613357]
[1743973297371,0.063,106.86,106.85,87.87574216]
[1743973298211,0.063,106.86,106.85,156.67535075]
[1743973298365,0.063,106.86,106.85,87.87574216]
[1743973298798,0.063,106.86,106.85,156.67535075]
[1743973299303,0.063,106.88,106.87,87.87574216]
[1743973299477,0.03,106.89,106.88,19.07613357]
[1743973299676,0.61587037,106.9,106.88,87.87574216]
[1743973299877,0.55664413,106.91,106.9,19.07613357]
[1743973300067,0.48698065,106.93,106.92,0.14216157]
[1743973300276,0.45953074,106.96,106.93,19.07613357]
[1743973300577,0.45953074,106.96,106.93,87.87574216]
[1743973300771,0.45953074,106.96,106.93,0.28432314]
[1743973300975,0.45953074,106.96,106.93,87.73358059]
[1743973301187,0.45953074,106.96,106.93,18.933972]
[1743973301363,0.45953074,106.96,106.93,87.73358059]
[1743973301565,0.45953074,106.96,106.93,87.87574216]
[1743973302368,0.45953074,106.96,106.93,87.73358059]
[1743973302586,0.45953074,106.96,106.93,87.87574216]
[1743973303271,81.68973013,106.95,106.92,68.79960859]
[1743973303572,81.68973013,106.95,106.93,68.79960859]
[1743973303771,81.68973013,106.95,106.92,0.28432314]
[1743973303979,81.68973013,106.95,106.92,68.94177016]
[1743973304176,81.68973013,106.95,106.93,68.79960859]
[1743973304584,81.68973013,106.95,106.93,87.73358059]
[1743973304985,81.68973013,106.95,106.93,87.87574216]
[1743973305306,0.48973013,106.95,106.93,87.87574216]
[1743973305884,0.48973013,106.95,106.94,19.57613357]
[1743973306087,0.48973013,106.95,106.94,88.37574216]
[1743973306593,0.34191042,106.98,106.97,26.92648471]
[1743973306901,0.39981017,106.99,106.98,19.07613357]
[1743973307104,0.39981017,106.99,106.98,156.67535075]
[1743973307482,0.39981017,106.99,106.98,18.64964886]
[1743973307798,81.59981017,106.99,106.97,68.79960859]
[1743973308009,81.59981017,106.99,106.93,0.14216157]
[1743973308010,81.59981017,106.99,106.96,68.79960859]
[1743973308511,81.59981017,106.99,106.98,18.64964886]
[1743973308800,30.0,106.98,106.96,68.79960859]
[1743973308993,30.0,106.98,106.93,18.79181043]
[1743973309209,30.0,106.98,106.96,68.79960859]
[1743973309376,30.0,106.98,106.97,87.87574216]
[1743973309571,30.0,106.98,106.97,19.07613357]
[1743973309777,10.92386643,106.97,106.92,69.29960859]
[1743973310084,10.92386643,106.97,106.96,68.79960859]
[1743973310792,0.39981017,106.99,106.95,26.0]
[1743973310991,0.39981017,106.99,106.98,68.79960859]
[1743973311778,0.39981017,106.99,106.98,87.87574216]
[1743973311979,0.39981017,106.99,106.98,19.07613357]
[1743973312182,0.39981017,106.99,106.92,68.79960859]
[1743973312503,30.0,106.95,106.93,19.07613357]
[1743973312689,30.0,106.95,106.93,18.79181043]
[1743973312885,30.0,106.95,106.94,0.14216157]
[1743973313386,29.85783843,106.94,106.93,18.79181043]